[Event "Early Titled Tuesday Blitz | February 8 2022"]
[White "Al-Tarboush, Ward"]
[Black "Gaehwiler, Gabriel"]
[WhiteFideId "7601450"]
[BlackFideId "1314530"]
[WhiteElo "2276"]
[BlackElo "2383"]
[Result "1-0"]
[Round "10"]
[TimeControl "180+1"]
[Date "2022.02.08"]
[WhiteClock "0:02:15"]
[BlackClock "0:00:18"]

1. e4 {[%clk 0:03:00]}  d6 {[%clk 0:03:00]} 2. d4 {[%clk 0:03:00]}  Nf6 {[%clk 0:03:01]} 3. Nc3 {[%clk 0:03:01]}  Nbd7 {[%clk 0:03:00]} 4. Bd3 {[%clk 0:02:59]}  e5 {[%clk 0:03:01]} 5. Nge2 {[%clk 0:02:57]}  Be7 {[%clk 0:03:01]} 6. f3 {[%clk 0:02:56]}  O-O {[%clk 0:03:02]} 7. d5 {[%clk 0:02:55]}  Nh5 {[%clk 0:02:59]} 8. Be3 {[%clk 0:02:54]}  Bg5 {[%clk 0:02:51]} 9. Qd2 {[%clk 0:02:54]}  Bxe3 {[%clk 0:02:49]} 10. Qxe3 {[%clk 0:02:55]}  a6 {[%clk 0:02:48]} 11. O-O-O {[%clk 0:02:54]}  Qf6 {[%clk 0:02:47]} 12. Rdg1 {[%clk 0:02:53]}  Nc5 {[%clk 0:02:42]} 13. Kb1 {[%clk 0:02:52]}  b5 {[%clk 0:02:38]} 14. g3 {[%clk 0:02:51]}  b4 {[%clk 0:02:30]} 15. Nd1 {[%clk 0:02:50]}  Bd7 {[%clk 0:02:27]} 16. f4 {[%clk 0:02:50]}  Bg4 {[%clk 0:02:12]} 17. f5 {[%clk 0:02:47]}  g5 {[%clk 0:01:53]} 18. h3 {[%clk 0:02:46]}  Bxe2 {[%clk 0:01:50]} 19. Bxe2 {[%clk 0:02:47]}  Ng7 {[%clk 0:01:50]} 20. h4 {[%clk 0:02:48]}  g4 {[%clk 0:01:19]} 21. Bxg4 {[%clk 0:02:45]}  a5 {[%clk 0:01:15]} 22. Bf3 {[%clk 0:02:43]}  a4 {[%clk 0:00:51]} 23. g4 {[%clk 0:02:43]}  b3 {[%clk 0:00:48]} 24. cxb3 {[%clk 0:02:43]}  axb3 {[%clk 0:00:48]} 25. a3 {[%clk 0:02:43]}  Ra4 {[%clk 0:00:42]} 26. g5 {[%clk 0:02:42]}  Qd8 {[%clk 0:00:42]} 27. f6 {[%clk 0:02:40]}  Ne8 {[%clk 0:00:25]} 28. Nc3 {[%clk 0:02:28]}  Ra5 {[%clk 0:00:24]} 29. Bg4 {[%clk 0:02:16]}  c6 {[%clk 0:00:18]} 30. Bf5 {[%clk 0:02:16]}  Nc7 {[%clk 0:00:18]} 31. Qf3 {[%clk 0:02:15]} 1-0


[Site "https://www.chess.com"]

[Event "Early Titled Tuesday Blitz | February 8 2022"]
[White "Ashiev, Eduard"]
[Black "Flis, Pawel"]
[WhiteFideId "4130090"]
[BlackFideId "1112864"]
[WhiteElo "2004"]
[BlackElo "1735"]
[Result "1-0"]
[Round "10"]
[TimeControl "180+1"]
[Date "2022.02.08"]
[WhiteClock "0:00:01"]
[BlackClock "0:00:03"]

1. d4 {[%clk 0:02:53]}  Nf6 {[%clk 0:02:59]} 2. Nf3 {[%clk 0:02:52]}  g6 {[%clk 0:02:57]} 3. c4 {[%clk 0:02:52]}  Bg7 {[%clk 0:02:57]} 4. Nc3 {[%clk 0:02:53]}  O-O {[%clk 0:02:57]} 5. e4 {[%clk 0:02:54]}  d6 {[%clk 0:02:57]} 6. h3 {[%clk 0:02:54]}  e5 {[%clk 0:02:56]} 7. d5 {[%clk 0:02:54]}  Nh5 {[%clk 0:02:56]} 8. Nh2 {[%clk 0:02:52]}  a5 {[%clk 0:02:44]} 9. g3 {[%clk 0:02:52]}  Na6 {[%clk 0:02:43]} 10. Be2 {[%clk 0:02:46]}  Nf6 {[%clk 0:02:38]} 11. g4 {[%clk 0:02:44]}  Nc5 {[%clk 0:02:38]} 12. Qc2 {[%clk 0:02:43]}  c6 {[%clk 0:02:36]} 13. Be3 {[%clk 0:02:39]}  cxd5 {[%clk 0:02:35]} 14. cxd5 {[%clk 0:02:39]}  Ne8 {[%clk 0:02:15]} 15. Nf1 {[%clk 0:02:20]}  f5 {[%clk 0:02:02]} 16. gxf5 {[%clk 0:02:10]}  gxf5 {[%clk 0:02:02]} 17. Rg1 {[%clk 0:02:09]}  Kh8 {[%clk 0:01:58]} 18. Bg5 {[%clk 0:02:04]}  Qd7 {[%clk 0:01:32]} 19. exf5 {[%clk 0:01:59]}  Qxf5 {[%clk 0:01:20]} 20. Qxf5 {[%clk 0:01:58]}  Bxf5 {[%clk 0:01:16]} 21. Ne3 {[%clk 0:01:31]}  Bxh3 {[%clk 0:01:08]} 22. Nc4 {[%clk 0:01:06]}  Bf6 {[%clk 0:00:46]} 23. Be3 {[%clk 0:00:58]}  Nd7 {[%clk 0:00:35]} 24. Ne4 {[%clk 0:00:56]}  Be7 {[%clk 0:00:30]} 25. Bd3 {[%clk 0:00:47]}  Ndf6 {[%clk 0:00:27]} 26. Ng5 {[%clk 0:00:44]}  e4 {[%clk 0:00:19]} 27. Nxe4 {[%clk 0:00:38]}  Nxe4 {[%clk 0:00:19]} 28. Bxe4 {[%clk 0:00:38]}  Nf6 {[%clk 0:00:17]} 29. Bd4 {[%clk 0:00:35]}  Rac8 {[%clk 0:00:10]} 30. Ne3 {[%clk 0:00:30]}  Rg8 {[%clk 0:00:10]} 31. Kd2 {[%clk 0:00:28]}  b5 {[%clk 0:00:07]} 32. Rxg8+ {[%clk 0:00:25]}  Kxg8 {[%clk 0:00:06]} 33. Rg1+ {[%clk 0:00:24]}  Kf7 {[%clk 0:00:06]} 34. Bf3 {[%clk 0:00:22]}  Bd7 {[%clk 0:00:05]} 35. b3 {[%clk 0:00:17]}  a4 {[%clk 0:00:05]} 36. b4 {[%clk 0:00:17]}  Rg8 {[%clk 0:00:05]} 37. Rh1 {[%clk 0:00:17]}  Rg7 {[%clk 0:00:04]} 38. Ke2 {[%clk 0:00:13]}  Rg6 {[%clk 0:00:03]} 39. a3 {[%clk 0:00:06]}  Rg5 {[%clk 0:00:03]} 40. Ng2 {[%clk 0:00:02]}  Kg8 {[%clk 0:00:03]} 41. Nf4 {[%clk 0:00:03]}  Nxd5 {[%clk 0:00:03]} 42. Bxd5+ {[%clk 0:00:01]} 1-0


[Site "https://www.chess.com"]

[Event "Early Titled Tuesday Blitz | February 8 2022"]
[White "Bambino Filho, Antonio Carlos"]
[Black "Pantzar, Milton"]
[WhiteFideId "2113163"]
[BlackFideId "1721003"]
[WhiteElo "2459"]
[BlackElo "2340"]
[Result "0-1"]
[Round "10"]
[TimeControl "180+1"]
[Date "2022.02.08"]
[WhiteClock "0:00:04"]
[BlackClock "0:00:13"]

1. e4 {[%clk 0:02:57]}  c6 {[%clk 0:02:53]} 2. c4 {[%clk 0:02:55]}  e5 {[%clk 0:02:46]} 3. Nf3 {[%clk 0:02:53]}  d6 {[%clk 0:02:46]} 4. d4 {[%clk 0:02:53]}  Nd7 {[%clk 0:02:41]} 5. Nc3 {[%clk 0:02:53]}  Be7 {[%clk 0:02:41]} 6. Be2 {[%clk 0:02:52]}  Ngf6 {[%clk 0:02:40]} 7. O-O {[%clk 0:02:53]}  O-O {[%clk 0:02:41]} 8. Re1 {[%clk 0:02:45]}  a6 {[%clk 0:02:40]} 9. Qc2 {[%clk 0:02:38]}  Re8 {[%clk 0:02:36]} 10. Be3 {[%clk 0:02:33]}  Bf8 {[%clk 0:02:34]} 11. d5 {[%clk 0:02:31]}  g6 {[%clk 0:02:23]} 12. dxc6 {[%clk 0:02:24]}  bxc6 {[%clk 0:02:23]} 13. Rad1 {[%clk 0:02:23]}  Qc7 {[%clk 0:02:23]} 14. Na4 {[%clk 0:02:21]}  Rb8 {[%clk 0:02:16]} 15. b3 {[%clk 0:02:17]}  Nh5 {[%clk 0:01:55]} 16. c5 {[%clk 0:02:05]}  dxc5 {[%clk 0:01:55]} 17. Nxc5 {[%clk 0:02:04]}  Nxc5 {[%clk 0:01:55]} 18. Bxc5 {[%clk 0:02:05]}  Bxc5 {[%clk 0:01:56]} 19. Qxc5 {[%clk 0:02:04]}  Nf4 {[%clk 0:01:56]} 20. Bf1 {[%clk 0:02:05]}  Bg4 {[%clk 0:01:56]} 21. Re3 {[%clk 0:01:53]}  a5 {[%clk 0:01:42]} 22. Rc1 {[%clk 0:01:52]}  Bxf3 {[%clk 0:01:20]} 23. Rxf3 {[%clk 0:01:53]}  Ne6 {[%clk 0:01:19]} 24. Qc3 {[%clk 0:01:29]}  Nd4 {[%clk 0:01:18]} 25. Rh3 {[%clk 0:01:29]}  Kg7 {[%clk 0:01:12]} 26. Qe3 {[%clk 0:01:20]}  h5 {[%clk 0:01:12]} 27. f4 {[%clk 0:01:11]}  Ne6 {[%clk 0:01:05]} 28. f5 {[%clk 0:01:05]}  Nd4 {[%clk 0:00:59]} 29. Rg3 {[%clk 0:00:39]}  Qe7 {[%clk 0:00:49]} 30. Bc4 {[%clk 0:00:28]}  Qh4 {[%clk 0:00:43]} 31. Rf1 {[%clk 0:00:24]}  Rb7 {[%clk 0:00:38]} 32. Rh3 {[%clk 0:00:20]}  Qd8 {[%clk 0:00:33]} 33. f6+ {[%clk 0:00:18]}  Kh7 {[%clk 0:00:32]} 34. Rxh5+ {[%clk 0:00:15]}  gxh5 {[%clk 0:00:32]} 35. Qg5 {[%clk 0:00:15]}  Nf3+ {[%clk 0:00:28]} 36. Rxf3 {[%clk 0:00:13]}  Qd4+ {[%clk 0:00:26]} 37. Rf2 {[%clk 0:00:10]}  Qd1+ {[%clk 0:00:24]} 38. Rf1 {[%clk 0:00:11]}  Qg4 {[%clk 0:00:25]} 39. Qe3 {[%clk 0:00:05]}  Rg8 {[%clk 0:00:20]} 40. Rf2 {[%clk 0:00:04]}  Rd7 {[%clk 0:00:18]} 41. h3 {[%clk 0:00:03]}  Qg3 {[%clk 0:00:17]} 42. Qxg3 {[%clk 0:00:02]}  Rxg3 {[%clk 0:00:17]} 43. Rf5 {[%clk 0:00:02]}  Kg6 {[%clk 0:00:15]} 44. Rxe5 {[%clk 0:00:02]}  Rg5 {[%clk 0:00:14]} 45. Rxg5+ {[%clk 0:00:01]}  Kxg5 {[%clk 0:00:15]} 46. e5 {[%clk 0:00:02]}  Kf5 {[%clk 0:00:15]} 47. e6 {[%clk 0:00:02]}  fxe6 {[%clk 0:00:14]} 48. g4+ {[%clk 0:00:03]}  Kxf6 {[%clk 0:00:14]} 49. gxh5 {[%clk 0:00:03]}  Rh7 {[%clk 0:00:15]} 50. Kf2 {[%clk 0:00:03]}  Rxh5 {[%clk 0:00:14]} 51. Kg3 {[%clk 0:00:04]}  e5 {[%clk 0:00:14]} 52. a4 {[%clk 0:00:05]}  c5 {[%clk 0:00:13]} 53. Kg4 {[%clk 0:00:06]}  Rg5+ {[%clk 0:00:13]} 54. Kf3 {[%clk 0:00:05]}  Rg1 {[%clk 0:00:14]} 55. h4 {[%clk 0:00:05]}  Rh1 {[%clk 0:00:14]} 56. Kg4 {[%clk 0:00:06]}  e4 {[%clk 0:00:14]} 57. h5 {[%clk 0:00:06]}  Ke5 {[%clk 0:00:14]} 58. Bb5 {[%clk 0:00:05]}  e3 {[%clk 0:00:14]} 59. Kf3 {[%clk 0:00:04]}  Kd4 {[%clk 0:00:13]} 60. Be8 {[%clk 0:00:04]}  Kd3 {[%clk 0:00:13]} 0-1


[Site "https://www.chess.com"]

[Event "Early Titled Tuesday Blitz | February 8 2022"]
[White "Bauer, Thomas"]
[Black "Samaganova, Aleksandra"]
[WhiteFideId "1639293"]
[BlackFideId "13800221"]
[WhiteElo "2220"]
[BlackElo "1859"]
[Result "1-0"]
[Round "10"]
[TimeControl "180+1"]
[Date "2022.02.08"]
[WhiteClock "0:00:07"]
[BlackClock "0:00:02"]

1. d4 {[%clk 0:03:00]}  Nf6 {[%clk 0:02:59]} 2. c4 {[%clk 0:03:00]}  e6 {[%clk 0:02:59]} 3. Nc3 {[%clk 0:03:00]}  Bb4 {[%clk 0:02:59]} 4. a3 {[%clk 0:03:00]}  Bxc3+ {[%clk 0:02:59]} 5. bxc3 {[%clk 0:03:01]}  c5 {[%clk 0:02:57]} 6. Bg5 {[%clk 0:02:49]}  h6 {[%clk 0:02:53]} 7. Bh4 {[%clk 0:02:48]}  cxd4 {[%clk 0:02:30]} 8. Bxf6 {[%clk 0:02:47]}  Qxf6 {[%clk 0:02:28]} 9. cxd4 {[%clk 0:02:47]}  O-O {[%clk 0:02:25]} 10. Nf3 {[%clk 0:02:47]}  Nc6 {[%clk 0:02:23]} 11. e3 {[%clk 0:02:46]}  b6 {[%clk 0:02:12]} 12. Bd3 {[%clk 0:02:44]}  Bb7 {[%clk 0:02:11]} 13. O-O {[%clk 0:02:44]}  Na5 {[%clk 0:02:09]} 14. Nd2 {[%clk 0:02:38]}  Rac8 {[%clk 0:02:04]} 15. Rc1 {[%clk 0:02:32]}  d5 {[%clk 0:01:53]} 16. c5 {[%clk 0:02:25]}  e5 {[%clk 0:01:36]} 17. dxe5 {[%clk 0:02:19]}  Qxe5 {[%clk 0:01:34]} 18. Nf3 {[%clk 0:02:19]}  Qh5 {[%clk 0:01:24]} 19. cxb6 {[%clk 0:02:16]}  axb6 {[%clk 0:01:23]} 20. Nd4 {[%clk 0:02:09]}  Qg5 {[%clk 0:01:15]} 21. Qf3 {[%clk 0:01:53]}  Rc5 {[%clk 0:01:01]} 22. Rb1 {[%clk 0:01:43]}  Rc3 {[%clk 0:00:52]} 23. Rfd1 {[%clk 0:01:36]}  Bc8 {[%clk 0:00:37]} 24. Bf5 {[%clk 0:01:08]}  Nc4 {[%clk 0:00:23]} 25. Bxc8 {[%clk 0:00:55]}  Rxc8 {[%clk 0:00:23]} 26. Nb5 {[%clk 0:00:51]}  Rc2 {[%clk 0:00:15]} 27. Qxd5 {[%clk 0:00:39]}  Qg6 {[%clk 0:00:13]} 28. Qd3 {[%clk 0:00:32]}  Qxd3 {[%clk 0:00:09]} 29. Rxd3 {[%clk 0:00:33]}  Nd2 {[%clk 0:00:04]} 30. Rd1 {[%clk 0:00:25]}  Ne4 {[%clk 0:00:04]} 31. Rf1 {[%clk 0:00:18]}  Rb2 {[%clk 0:00:03]} 32. Nd4 {[%clk 0:00:12]}  Rc4 {[%clk 0:00:02]} 33. h4 {[%clk 0:00:13]}  Nd2 {[%clk 0:00:02]} 34. Rd1 {[%clk 0:00:12]}  Ne4 {[%clk 0:00:03]} 35. Rf1 {[%clk 0:00:10]}  Ra4 {[%clk 0:00:03]} 36. Rc1 {[%clk 0:00:09]}  Kh7 {[%clk 0:00:02]} 37. Rc7 {[%clk 0:00:09]}  Nxf2 {[%clk 0:00:03]} 38. Rb3 {[%clk 0:00:07]}  Ng4 {[%clk 0:00:03]} 39. Rxb2 {[%clk 0:00:06]}  Rxa3 {[%clk 0:00:03]} 40. Rb1 {[%clk 0:00:06]}  Rxe3 {[%clk 0:00:03]} 41. Nf5 {[%clk 0:00:07]}  Re5 {[%clk 0:00:03]} 42. Nd6 {[%clk 0:00:08]}  Re6 {[%clk 0:00:02]} 43. Nxf7 {[%clk 0:00:08]}  Rg6 {[%clk 0:00:02]} 44. h5 {[%clk 0:00:08]}  Rf6 {[%clk 0:00:02]} 45. Rf1 {[%clk 0:00:07]}  Re6 {[%clk 0:00:01]} 46. Rc8 {[%clk 0:00:07]}  Ne3 {[%clk 0:00:02]} 47. Rh8# {[%clk 0:00:07]} 1-0


[Site "https://www.chess.com"]

[Event "Early Titled Tuesday Blitz | February 8 2022"]
[White "Bintang, Rasyid A. Hidayat"]
[Black "Adewumi, Tanitoluwa"]
[WhiteFideId "7105355"]
[BlackFideId "30966396"]
[WhiteElo "2318"]
[BlackElo "2437"]
[Result "1-0"]
[Round "10"]
[TimeControl "180+1"]
[Date "2022.02.08"]
[WhiteClock "0:02:05"]
[BlackClock "0:01:24"]

1. d4 {[%clk 0:03:00]}  Nf6 {[%clk 0:02:54]} 2. Bf4 {[%clk 0:03:00]}  d6 {[%clk 0:02:54]} 3. Nc3 {[%clk 0:03:00]}  g6 {[%clk 0:02:54]} 4. e4 {[%clk 0:03:01]}  Bg7 {[%clk 0:02:52]} 5. Qd2 {[%clk 0:03:01]}  c6 {[%clk 0:02:50]} 6. Nf3 {[%clk 0:03:01]}  Bg4 {[%clk 0:02:38]} 7. Be2 {[%clk 0:03:00]}  Bxf3 {[%clk 0:02:32]} 8. Bxf3 {[%clk 0:03:01]}  Qb6 {[%clk 0:02:30]} 9. O-O-O {[%clk 0:03:00]}  Nfd7 {[%clk 0:02:25]} 10. Be3 {[%clk 0:02:45]}  Qa5 {[%clk 0:02:20]} 11. h4 {[%clk 0:02:44]}  h5 {[%clk 0:02:17]} 12. Kb1 {[%clk 0:02:35]}  e5 {[%clk 0:02:15]} 13. d5 {[%clk 0:02:32]}  c5 {[%clk 0:02:12]} 14. g4 {[%clk 0:02:23]}  hxg4 {[%clk 0:02:08]} 15. Bxg4 {[%clk 0:02:24]}  Nb6 {[%clk 0:02:07]} 16. Be2 {[%clk 0:02:22]}  f5 {[%clk 0:01:54]} 17. Bg5 {[%clk 0:02:12]}  fxe4 {[%clk 0:01:28]} 18. Nxe4 {[%clk 0:02:06]}  Kd7 {[%clk 0:01:24]} 19. Qxa5 {[%clk 0:02:05]} 1-0


[Site "https://www.chess.com"]

[Event "Early Titled Tuesday Blitz | February 8 2022"]
[White "Brunner, Nicolas"]
[Black "Yang, Kaiqi"]
[WhiteFideId "620246"]
[BlackFideId "8604398"]
[WhiteElo "2372"]
[BlackElo "2373"]
[Result "1-0"]
[Round "10"]
[TimeControl "180+1"]
[Date "2022.02.08"]
[WhiteClock "0:00:32"]
[BlackClock "0:00:02"]

1. d4 {[%clk 0:03:00]}  Nf6 {[%clk 0:02:59]} 2. c4 {[%clk 0:03:00]}  g6 {[%clk 0:03:00]} 3. Nf3 {[%clk 0:02:59]}  Bg7 {[%clk 0:03:00]} 4. Nc3 {[%clk 0:02:59]}  O-O {[%clk 0:03:00]} 5. e4 {[%clk 0:02:59]}  d6 {[%clk 0:03:00]} 6. Be2 {[%clk 0:02:58]}  e5 {[%clk 0:03:01]} 7. O-O {[%clk 0:02:58]}  exd4 {[%clk 0:02:54]} 8. Nxd4 {[%clk 0:02:58]}  c6 {[%clk 0:02:55]} 9. f3 {[%clk 0:02:53]}  Re8 {[%clk 0:02:53]} 10. Nc2 {[%clk 0:02:49]}  Na6 {[%clk 0:02:45]} 11. Be3 {[%clk 0:02:46]}  Nc7 {[%clk 0:02:37]} 12. Qd2 {[%clk 0:02:32]}  d5 {[%clk 0:02:22]} 13. Rad1 {[%clk 0:02:30]}  Be6 {[%clk 0:02:18]} 14. cxd5 {[%clk 0:02:23]}  cxd5 {[%clk 0:02:17]} 15. e5 {[%clk 0:02:23]}  Nd7 {[%clk 0:02:02]} 16. f4 {[%clk 0:02:23]}  Nb6 {[%clk 0:01:51]} 17. Nd4 {[%clk 0:02:21]}  Nc4 {[%clk 0:01:48]} 18. Bxc4 {[%clk 0:02:21]}  dxc4 {[%clk 0:01:49]} 19. Nxe6 {[%clk 0:02:09]}  Qxd2 {[%clk 0:01:32]} 20. Rxd2 {[%clk 0:02:07]}  Nxe6 {[%clk 0:01:30]} 21. Rd7 {[%clk 0:02:03]}  Bf8 {[%clk 0:01:19]} 22. Ne4 {[%clk 0:01:57]}  Re7 {[%clk 0:01:17]} 23. Rfd1 {[%clk 0:01:52]}  Rc8 {[%clk 0:01:12]} 24. Rxe7 {[%clk 0:01:46]}  Bxe7 {[%clk 0:01:12]} 25. Rd7 {[%clk 0:01:47]}  Bc5 {[%clk 0:00:55]} 26. Nxc5 {[%clk 0:01:39]}  Nxc5 {[%clk 0:00:55]} 27. Bxc5 {[%clk 0:01:38]}  Rxc5 {[%clk 0:00:55]} 28. Rxb7 {[%clk 0:01:39]}  a5 {[%clk 0:00:47]} 29. Ra7 {[%clk 0:01:38]}  Rb5 {[%clk 0:00:45]} 30. b3 {[%clk 0:01:27]}  cxb3 {[%clk 0:00:40]} 31. axb3 {[%clk 0:01:28]}  h5 {[%clk 0:00:37]} 32. g3 {[%clk 0:01:18]}  Rxb3 {[%clk 0:00:36]} 33. Rxa5 {[%clk 0:01:17]}  Rb2 {[%clk 0:00:37]} 34. Ra1 {[%clk 0:01:15]}  Kf8 {[%clk 0:00:37]} 35. Rf1 {[%clk 0:01:15]}  Ke7 {[%clk 0:00:37]} 36. Rf2 {[%clk 0:01:16]}  Rb3 {[%clk 0:00:38]} 37. Kg2 {[%clk 0:01:16]}  Ke6 {[%clk 0:00:38]} 38. Rd2 {[%clk 0:01:14]}  Ra3 {[%clk 0:00:38]} 39. Rd6+ {[%clk 0:01:12]}  Ke7 {[%clk 0:00:38]} 40. Kh3 {[%clk 0:01:10]}  Ra2 {[%clk 0:00:37]} 41. Rf6 {[%clk 0:01:08]}  Rb2 {[%clk 0:00:37]} 42. f5 {[%clk 0:01:05]}  g5 {[%clk 0:00:30]} 43. Rh6 {[%clk 0:00:55]}  g4+ {[%clk 0:00:26]} 44. Kh4 {[%clk 0:00:55]}  Rxh2+ {[%clk 0:00:26]} 45. Kg5 {[%clk 0:00:56]}  Rg2 {[%clk 0:00:18]} 46. Rxh5 {[%clk 0:00:50]}  Rxg3 {[%clk 0:00:18]} 47. Rh4 {[%clk 0:00:51]}  Re3 {[%clk 0:00:18]} 48. Kf4 {[%clk 0:00:51]}  Re1 {[%clk 0:00:11]} 49. Rxg4 {[%clk 0:00:51]}  Rf1+ {[%clk 0:00:11]} 50. Kg5 {[%clk 0:00:51]}  Re1 {[%clk 0:00:12]} 51. Ra4 {[%clk 0:00:49]}  Rxe5 {[%clk 0:00:11]} 52. Ra7+ {[%clk 0:00:49]}  Ke8 {[%clk 0:00:09]} 53. Kf6 {[%clk 0:00:49]}  Rb5 {[%clk 0:00:09]} 54. Ra8+ {[%clk 0:00:49]}  Kd7 {[%clk 0:00:09]} 55. Ra7+ {[%clk 0:00:48]}  Ke8 {[%clk 0:00:09]} 56. Re7+ {[%clk 0:00:47]}  Kf8 {[%clk 0:00:06]} 57. Rxf7+ {[%clk 0:00:46]}  Kg8 {[%clk 0:00:06]} 58. Rg7+ {[%clk 0:00:46]}  Kf8 {[%clk 0:00:06]} 59. Rf7+ {[%clk 0:00:46]}  Kg8 {[%clk 0:00:06]} 60. Rd7 {[%clk 0:00:46]}  Rb6+ {[%clk 0:00:06]} 61. Ke7 {[%clk 0:00:46]}  Kg7 {[%clk 0:00:05]} 62. Rd1 {[%clk 0:00:36]}  Rb7+ {[%clk 0:00:05]} 63. Ke6 {[%clk 0:00:36]}  Rb6+ {[%clk 0:00:05]} 64. Ke5 {[%clk 0:00:36]}  Rb5+ {[%clk 0:00:05]} 65. Kf4 {[%clk 0:00:36]}  Kf7 {[%clk 0:00:04]} 66. Rd7+ {[%clk 0:00:34]}  Kf6 {[%clk 0:00:04]} 67. Rd6+ {[%clk 0:00:34]}  Kf7 {[%clk 0:00:05]} 68. Kg5 {[%clk 0:00:34]}  Rb1 {[%clk 0:00:03]} 69. Rd7+ {[%clk 0:00:35]}  Kf8 {[%clk 0:00:04]} 70. Kg6 {[%clk 0:00:34]}  Rb8 {[%clk 0:00:03]} 71. f6 {[%clk 0:00:32]}  Ra8 {[%clk 0:00:02]} 72. Rh7 {[%clk 0:00:32]} 1-0


[Site "https://www.chess.com"]

[Event "Early Titled Tuesday Blitz | February 8 2022"]
[White "Buscar, Michael"]
[Black "Miszler, Levente"]
[WhiteFideId "2603616"]
[BlackFideId "763276"]
[WhiteElo "2010"]
[BlackElo "1966"]
[Result "0-1"]
[Round "10"]
[TimeControl "180+1"]
[Date "2022.02.08"]
[WhiteClock "0:00:01"]
[BlackClock "0:00:37"]

1. Nf3 {[%clk 0:02:54]}  Nf6 {[%clk 0:02:59]} 2. c4 {[%clk 0:02:54]}  c6 {[%clk 0:02:57]} 3. g3 {[%clk 0:02:53]}  d5 {[%clk 0:02:58]} 4. b3 {[%clk 0:02:53]}  Bf5 {[%clk 0:02:55]} 5. Bb2 {[%clk 0:02:53]}  h6 {[%clk 0:02:54]} 6. Bg2 {[%clk 0:02:53]}  e6 {[%clk 0:02:54]} 7. O-O {[%clk 0:02:51]}  Bd6 {[%clk 0:02:51]} 8. d3 {[%clk 0:02:49]}  O-O {[%clk 0:02:49]} 9. Nbd2 {[%clk 0:02:48]}  Nbd7 {[%clk 0:02:44]} 10. Nd4 {[%clk 0:02:46]}  Bh7 {[%clk 0:02:41]} 11. e4 {[%clk 0:02:35]}  Nc5 {[%clk 0:02:25]} 12. Qe2 {[%clk 0:02:30]}  dxe4 {[%clk 0:02:19]} 13. dxe4 {[%clk 0:02:31]}  Be5 {[%clk 0:02:16]} 14. N2f3 {[%clk 0:02:15]}  Bxd4 {[%clk 0:02:11]} 15. Bxd4 {[%clk 0:02:03]}  Ncxe4 {[%clk 0:02:08]} 16. Rad1 {[%clk 0:02:03]}  Qe7 {[%clk 0:02:08]} 17. Ne5 {[%clk 0:01:54]}  Rfd8 {[%clk 0:01:56]} 18. Ng4 {[%clk 0:01:53]}  Nxg4 {[%clk 0:01:50]} 19. Bxe4 {[%clk 0:01:28]}  Bxe4 {[%clk 0:01:44]} 20. Qxg4 {[%clk 0:01:28]}  Bg6 {[%clk 0:01:44]} 21. Qe2 {[%clk 0:01:22]}  Rd7 {[%clk 0:01:37]} 22. Qe5 {[%clk 0:01:16]}  f6 {[%clk 0:01:37]} 23. Qe3 {[%clk 0:01:13]}  b6 {[%clk 0:01:29]} 24. Bb2 {[%clk 0:01:07]}  Rad8 {[%clk 0:01:28]} 25. Rxd7 {[%clk 0:00:59]}  Qxd7 {[%clk 0:01:29]} 26. Qf3 {[%clk 0:00:58]}  e5 {[%clk 0:01:24]} 27. h4 {[%clk 0:00:56]}  Bf5 {[%clk 0:01:18]} 28. Re1 {[%clk 0:00:48]}  Bg4 {[%clk 0:01:12]} 29. Qe4 {[%clk 0:00:44]}  Bf5 {[%clk 0:01:03]} 30. Qf3 {[%clk 0:00:40]}  Qd2 {[%clk 0:01:01]} 31. Qe2 {[%clk 0:00:40]}  Qxe2 {[%clk 0:00:49]} 32. Rxe2 {[%clk 0:00:40]}  Bg4 {[%clk 0:00:50]} 33. Re3 {[%clk 0:00:04]}  Rd2 {[%clk 0:00:43]} 34. Ba3 {[%clk 0:00:01]}  Rxa2 {[%clk 0:00:41]} 35. Bb4 {[%clk 0:00:01]}  c5 {[%clk 0:00:37]} 0-1


[Site "https://www.chess.com"]

[Event "Early Titled Tuesday Blitz | February 8 2022"]
[White "Cunjalo, Faris"]
[Black "Kucuksari, Kaan"]
[WhiteFideId "14410710"]
[BlackFideId "6380166"]
[WhiteElo "2263"]
[BlackElo "2305"]
[Result "1-0"]
[Round "10"]
[TimeControl "180+1"]
[Date "2022.02.08"]
[WhiteClock "0:01:14"]
[BlackClock "0:00:24"]

1. c4 {[%clk 0:03:00]}  c6 {[%clk 0:02:56]} 2. Nf3 {[%clk 0:02:59]}  d5 {[%clk 0:02:57]} 3. e3 {[%clk 0:03:00]}  Nf6 {[%clk 0:02:56]} 4. Nc3 {[%clk 0:03:00]}  Bg4 {[%clk 0:02:54]} 5. Qb3 {[%clk 0:02:57]}  Bxf3 {[%clk 0:02:49]} 6. Qxb7 {[%clk 0:02:52]}  Nbd7 {[%clk 0:02:26]} 7. gxf3 {[%clk 0:02:52]}  g6 {[%clk 0:02:23]} 8. Qxc6 {[%clk 0:02:42]}  Rc8 {[%clk 0:02:22]} 9. Qa4 {[%clk 0:02:42]}  dxc4 {[%clk 0:02:18]} 10. Bxc4 {[%clk 0:02:42]}  Bg7 {[%clk 0:02:19]} 11. Be2 {[%clk 0:02:31]}  O-O {[%clk 0:02:18]} 12. d4 {[%clk 0:02:20]}  e5 {[%clk 0:02:15]} 13. dxe5 {[%clk 0:02:17]}  Nxe5 {[%clk 0:02:15]} 14. Qb5 {[%clk 0:02:17]}  Nfd7 {[%clk 0:02:13]} 15. f4 {[%clk 0:02:17]}  Rc5 {[%clk 0:02:12]} 16. Qa6 {[%clk 0:02:15]}  Nc6 {[%clk 0:02:12]} 17. Bd2 {[%clk 0:02:14]}  Nb6 {[%clk 0:02:03]} 18. Rd1 {[%clk 0:02:02]}  Nb4 {[%clk 0:02:02]} 19. Qxa7 {[%clk 0:02:00]}  Qd6 {[%clk 0:01:08]} 20. Ne4 {[%clk 0:01:38]}  Nc2+ {[%clk 0:01:06]} 21. Kf1 {[%clk 0:01:38]}  Qc6 {[%clk 0:01:02]} 22. Bf3 {[%clk 0:01:32]}  Rd5 {[%clk 0:00:48]} 23. Kg2 {[%clk 0:01:25]}  Ra8 {[%clk 0:00:39]} 24. Qe7 {[%clk 0:01:25]}  Re8 {[%clk 0:00:37]} 25. Qh4 {[%clk 0:01:24]}  Rh5 {[%clk 0:00:35]} 26. Bxh5 {[%clk 0:01:21]}  gxh5 {[%clk 0:00:35]} 27. f3 {[%clk 0:01:20]}  Rxe4 {[%clk 0:00:35]} 28. fxe4 {[%clk 0:01:21]}  Qxe4+ {[%clk 0:00:36]} 29. Kf2 {[%clk 0:01:15]}  Nd4 {[%clk 0:00:24]} 30. Qd8+ {[%clk 0:01:14]} 1-0


[Site "https://www.chess.com"]